bitfinex-derivatives/quotes_SOLF0:USTF0_20241211
["timestamp","ask_amount","ask_price","bid_price","bid_amount"]
[1733880837489,18.28214975,213.32,213.26,2.343]
[1733880837693,3.34,213.36,213.26,2.343]
[1733880837991,30.97035118,213.35,213.26,2.343]
[1733880838191,30.97035118,213.34,213.26,2.343]
[1733880838393,30.97035118,213.33,213.26,2.343]
[1733880838592,21.36287191,213.32,213.26,2.343]
[1733880838793,19.02065712,213.31,213.26,2.343]
[1733880838994,0.73821707,213.3,213.26,2.343]
[1733880839198,2.3423,213.32,213.26,2.343]
[1733880839391,9.83483434,213.31,213.26,2.343]
[1733880839597,0.73821162,213.3,213.26,2.343]
[1733880839798,3.34,213.36,213.26,2.343]
[1733880839994,30.55622441,213.35,213.26,2.343]
[1733880840195,30.55622441,213.34,213.26,2.343]
[1733880840490,3.34,213.36,213.21,1.4537]
[1733880840491,30.55622441,213.33,213.21,1.4537]
[1733880840694,30.55622441,213.32,213.21,1.4537]
[1733880840890,30.55622441,213.31,213.21,1.4537]
[1733880841192,30.52428317,213.3,213.21,1.4537]
[1733880841493,2.343,213.27,213.21,3.7972]
[1733880841795,3.34,213.3,213.21,3.7972]
[1733880841992,9.9164582,213.29,213.21,3.7972]
[1733880842192,0.73765995,213.28,213.21,3.7972]
[1733880842393,3.34,213.36,213.21,4.7937]
[1733880842594,30.54020254,213.35,213.21,6.2688]
[1733880842893,2.3425,213.31,213.25,2.3431]
[1733880843087,4.0779939,213.3,213.21,1.4537]
[1733880843293,18.59856117,213.29,213.19,5.56111785]
[1733880843489,30.54456699,213.28,213.14,1.4149]
[1733880843689,30.54456699,213.27,213.1,31.76930244]
[1733880843889,2.3438,213.19,213.13,2.3444]
[1733880844093,2.3438,213.19,213.1,31.76930244]
[1733880844496,3.34,213.23,213.1,31.76930244]
[1733880844698,0.7383979,213.22,213.1,31.76930244]
[1733880845202,2.3435,213.21,213.15,2.3441]
[1733880845499,2.3435,213.21,213.1,20.06602654]
[1733880845700,3.34,213.31,213.14,18.58572654]
[1733880845892,30.58680496,213.3,213.15,3.34]
[1733880846096,30.58680496,213.29,213.15,3.34]
[1733880846290,30.58680496,213.28,213.15,3.34]
[1733880846492,3.34,213.31,213.15,3.34]
[1733880846493,2.3431,213.26,213.15,3.34]
[1733880846692,3.34,213.31,213.15,3.34]
[1733880847000,30.08874905,213.3,213.15,3.34]
[1733880847199,3.34,213.31,213.15,3.34]
[1733880847200,30.08874905,213.29,213.15,3.34]
[1733880847400,9.42894242,213.28,213.15,3.34]
[1733880847601,3.34,213.31,213.19,2.3437]
[1733880847803,18.12474473,213.3,213.19,2.3437]
[1733880847997,9.42890443,213.29,213.15,3.34]
[1733880848194,2.3431,213.26,213.2,2.3436]
[1733880848598,0.73905675,213.25,213.15,3.34]
[1733880848800,3.34,213.31,213.18,18.58572654]
[1733880848994,29.67378212,213.3,213.18,18.58572654]
[1733880849196,29.67378212,213.3,213.1,1.4803]
[1733880849197,2.3439,213.18,213.13,2.3444]
[1733880849500,3.34,213.27,213.16,18.58572654]
[1733880849695,0.73904776,213.26,213.16,18.58572654]
[1733880849896,1.4335,213.38,213.15,3.34]
[1733880849897,0.73896678,213.34,213.24,18.58572654]
[1733880850097,194.1063369,213.41,213.31,18.58572654]
[1733880850403,2.3430178,213.4,213.35,18.58572654]
[1733880850604,1.3584,213.5,213.29,18.58572654]
[1733880850605,5.53380545,213.52,213.39,18.58572654]
[1733880850808,22.99050165,213.51,213.39,18.58572654]
[1733880851000,3.07426455,213.51,213.39,18.58572654]
[1733880851201,3.07431911,213.5,213.39,18.58572654]
[1733880851401,2.34192037,213.5,213.43,18.58572654]
[1733880851800,2.34192037,213.5,213.38,2.8447]
[1733880851801,3.34,213.61,213.47,18.58572654]
[1733880852001,3.07296544,213.6,213.51,18.58572654]
[1733880852206,3.07307503,213.59,213.51,18.58572654]
[1733880852403,3.07318463,213.58,213.47,18.58572654]
[1733880852702,3.07329425,213.57,213.47,18.58572654]
[1733880852908,0.73214147,213.56,213.47,18.58572654]
[1733880853107,3.34,213.55,213.43,18.58572654]
[1733880853404,3.34,213.55,213.39,5.61933915]
[1733880853405,0.73214147,213.54,213.41,30.12144426]
[1733880853905,2.3406,213.48,213.41,30.12144426]
[1733880855209,2.3408,213.46,213.38,2.8447]
[1733880855411,3.34,213.48,213.38,2.8447]
[1733880855802,2.3407,213.47,213.38,2.8447]
[1733880856009,2.34115278,213.57,213.41,30.12144426]
[1733880856201,0.7323273,213.56,213.41,30.12144426]
[1733880856403,2.34137204,213.55,213.41,30.12144426]
[1733880856602,0.7323273,213.54,213.41,30.12144426]
[1733880857112,4.68127204,213.55,213.45,30.12144426]
[1733880858505,2.34137204,213.55,213.45,30.12144426]
[1733880859107,2.3401,213.53,213.45,30.12144426]
[1733880859517,3.34,213.58,213.45,30.12144426]
[1733880859810,0.73212575,213.57,213.43,2.3411]
[1733880860010,0.73212575,213.57,213.4,30.12144426]
[1733880860213,2.3406,213.48,213.4,30.12144426]
[1733880860414,31.56854426,213.6,213.4,30.12144426]
[1733880860415,3.34,213.52,213.4,30.12144426]
[1733880860610,3.34,213.54,213.44,30.12144426]
[1733880860810,3.34,213.55,213.44,30.12144426]
[1733880861009,0.73222824,213.54,213.44,30.12144426]
[1733880861311,5.6799,213.55,213.44,30.12144426]
[1733880861511,3.34,213.55,213.44,30.12144426]
[1733880862117,0.73217808,213.54,213.41,1.425]
[1733880862418,0.73217808,213.54,213.4,30.12144426]
[1733880862617,2.3408,213.46,213.4,30.12144426]
[1733880862817,3.34,213.49,213.36,30.12144426]
[1733880863116,0.73244763,213.48,213.32,30.12144426]
[1733880863314,2.3415,213.4,213.32,30.12144426]
[1733880863517,3.3,213.41,213.32,5.60851998]
[1733880863817,3.3,213.4,213.32,5.60851998]
[1733880864013,3.3,213.4,213.24,30.12144426]
[1733880864422,2.3425,213.31,213.24,2.3432]
[1733880864620,3.3,213.32,213.24,5.60739569]
[1733880864820,3.3,213.32,213.25,2.34466588]
[1733880865119,2.3424,213.31,213.25,2.34466588]
[1733880865519,5.6423,213.32,213.25,4.68776588]
[1733880865816,3.3,213.32,213.25,2.34466588]
[1733880866016,2.3427,213.29,213.25,2.34466588]
[1733880866218,3.3,213.32,213.25,2.34466588]
[1733880866818,2.3426,213.3,213.25,2.34466588]
[1733880867518,3.3,213.32,213.25,2.34466588]
[1733880867721,30.12144426,213.29,213.1,30.12144426]
[1733880867919,2.3435,213.22,213.15,2.3442]
[1733880868117,3.3,213.22,213.1,30.12144426]
[1733880868418,3.3,213.22,213.11,2.34620618]
[1733880869817,2.3437,213.2,213.13,2.3444]
[1733880870718,3.3,213.26,213.14,30.12144426]
[1733880870919,3.3,213.28,213.14,35.6371525]
[1733880871126,3.3,213.29,213.14,35.6371525]
[1733880871421,0.73325497,213.28,213.14,5.51570824]
[1733880872214,30.12144426,213.33,213.15,33.42144426]
[1733880872415,0.73287963,213.32,213.19,30.12144426]
[1733880872718,3.3,213.37,213.23,30.12144426]
[1733880872916,3.3,213.37,213.23,33.42144426]
[1733880873318,0.73293444,213.36,213.23,33.42144426]
[1733880873521,30.12144426,213.41,213.23,3.3]
[1733880873718,4.03281384,213.4,213.23,3.3]
[1733880874025,0.73281384,213.39,213.23,3.3]
[1733880874324,3.3,213.4,213.23,3.3]
[1733880874622,0.73295449,213.39,213.23,3.3]
[1733880874820,2.3423,213.32,213.25,2.3431]
[1733880875023,2.3423,213.32,213.23,3.3]
[1733880875325,2.3423,213.32,213.27,5.50831599]
[1733880875520,1.4223,213.4,213.29,2.3426]
[1733880875718,4.0328794,213.39,213.27,5.50831599]
[1733880875922,0.7328794,213.38,213.27,5.50831599]
[1733880876118,1.4223,213.4,213.27,5.50831599]
[1733880876418,258.8084492,213.6,213.27,5.50831599]
[1733880876419,2.7768,213.5,213.27,5.50831599]
[1733880876619,2.3416,213.39,213.27,5.50831599]
[1733880876819,3.3,213.45,213.3,30.12144426]
[1733880877016,3.3,213.45,213.34,30.12144426]
[1733880877218,3.3,213.45,213.35,2.8467]
[1733880878517,3.3,213.48,213.35,2.8467]
[1733880878723,3.3,213.5,213.38,30.12144426]
[1733880878924,3.3,213.5,213.38,33.42144426]
[1733880879118,3.3,213.54,213.38,33.42144426]
[1733880880421,3.3,213.54,213.38,3.3]
[1733880880621,0.73238547,213.53,213.35,2.8467]
[1733880880920,2.3407,213.47,213.38,2.3416]
[1733880881128,2.3407,213.47,213.35,2.8467]
[1733880881129,3.3,213.48,213.39,5.65881203]
[1733880881323,18.54236543,213.54,213.39,5.65881203]
[1733880881521,3.3,213.53,213.39,5.65881203]
[1733880882120,3.3,213.53,213.39,24.20117746]
[1733880882317,18.54236543,213.62,213.43,18.54236543]
[1733880882628,2.3395,213.58,213.5,2.3403]
[1733880882924,4.7648,213.6,213.5,2.3403]
[1733880883124,10.48009144,213.6,213.5,2.3403]
[1733880883323,18.54236543,213.62,213.51,2.3402]
[1733880883523,21.84236543,213.62,213.51,2.3402]
[1733880884023,2.3395,213.58,213.48,5.2462]
[1733880884219,21.84236543,213.62,213.48,1.4357]
[1733880884220,27.53685763,213.62,213.48,1.4357]
[1733880884929,27.53685763,213.62,213.44,1.3787]
[1733880884930,0.73212444,213.61,213.44,1.3787]
[1733880885230,1.46426657,213.61,213.47,2.3406]
[1733880885530,0.73214213,213.6,213.47,2.3406]
[1733880885826,2.3401,213.53,213.45,2.3408]
[1733880886026,3.3,213.56,213.45,2.3408]
[1733880886225,3.3,213.56,213.44,2.8601]
[1733880886425,3.3,213.56,213.41,1.47]
[1733880886627,18.54236543,213.54,213.41,1.47]
[1733880887426,18.54236543,213.5,213.33,3.3]
[1733880887622,3.3,213.49,213.32,18.54236543]
[1733880887818,3.3,213.49,213.31,1.4839]
[1733880888020,18.54236543,213.46,213.31,1.4839]
[1733880888224,2.3414,213.41,213.31,1.4839]
[1733880888424,0.73269139,213.45,213.3,2.936]
[1733880888425,3.3,213.4,213.3,2.936]
[1733880888629,3.3,213.39,213.3,2.936]
[1733880888829,3.3,213.39,213.26,2.3429]
[1733880889024,3.3,213.39,213.25,1.3523]
[1733880889223,0.73293181,213.38,213.25,1.3523]
[1733880890419,19.27529724,213.38,213.23,1.4814]
[1733880890626,12.62483323,213.37,213.23,1.4814]
[1733880890830,12.62483323,213.37,213.21,6.9939518]
[1733880890831,0.73293181,213.36,213.21,6.9939518]
[1733880891130,18.54236543,213.34,213.21,1.3657]
[1733880891427,18.54236543,213.3,213.17,1.4814]
[1733880891631,4.03319251,213.29,213.13,1.397]
[1733880891828,18.54236543,213.26,213.13,1.397]
[1733880892227,0.73319251,213.25,213.13,1.397]
[1733880892526,0.73319251,213.25,213.09,1.4498]
[1733880892527,0.73336463,213.24,213.09,1.4498]
[1733880892728,18.54236543,213.22,213.07,5.72197162]
[1733880892927,3.93336463,213.21,213.07,5.72197162]
[1733880893126,3.93336463,213.2,213.08,21.74236543]
[1733880893325,0.73336463,213.19,213.08,21.74236543]
[1733880893528,2.3439,213.18,213.09,2.3448]
[1733880893929,3.2,213.2,213.07,5.72197162]
[1733880894137,0.73361198,213.19,213.07,5.72197162]
[1733880894333,3.2,213.2,213.07,5.72197162]
[1733880894533,0.73364116,213.19,213.07,5.72197162]
[1733880894829,3.2,213.2,213.07,5.72197162]
[1733880895129,0.73363129,213.19,213.07,5.72197162]
[1733880896130,0.73363129,213.24,213.08,3.2]
[1733880896330,6.27685714,213.23,213.08,3.2]
[1733880896534,3.93345714,213.23,213.1,30.22407831]
[1733880896834,3.93345714,213.23,213.16,2.3441]
[1733880897633,3.93345714,213.23,213.15,2.3442]
[1733880898132,3.93345714,213.23,213.17,2.3439]
[1733880898630,3.93345714,213.23,213.12,2.8721]
[1733880898834,0.73345714,213.23,213.12,2.8721]
[1733880900331,2.3438,213.19,213.12,5.2166]
[1733880900631,3.2,213.25,213.12,2.8721]
[1733880900840,2.3432,213.25,213.17,2.3439]
[1733880901029,31.63177831,213.33,213.14,30.22407831]
[1733880901332,0.73332109,213.31,213.14,30.22407831]
[1733880901634,3.93332109,213.3,213.14,30.22407831]
[1733880901834,3.2,213.3,213.14,30.22407831]
[1733880902133,1.4394,213.35,213.18,30.22407831]
[1733880902433,2.3424,213.32,213.22,2.3433]
[1733880902730,3.2,213.35,213.18,33.42407831]
[1733880902926,3.2,213.35,213.14,30.22407831]
[1733880902927,30.22407831,213.33,213.14,30.22407831]
[1733880903131,30.22407831,213.29,213.14,3.2]
[1733880903333,3.2,213.28,213.14,33.42407831]
[1733880903532,2.3429,213.27,213.21,2.3435]
[1733880903732,30.22407831,213.33,213.14,33.42407831]
[1733880903932,3.2,213.33,213.18,30.22407831]
[1733880904237,0.73321016,213.32,213.14,33.42407831]
[1733880904443,0.73321016,213.32,213.14,3.2]
[1733880904635,2.343,213.26,213.18,2.3438]
[1733880904837,3.2,213.27,213.17,5.70547105]
[1733880905735,30.22407831,213.33,213.17,35.92954936]
[1733880905736,3.2,213.33,213.17,35.92954936]
[1733880906133,2.3425,213.31,213.17,35.92954936]
[1733880906341,3.2,213.35,213.21,30.22407831]
[1733880906527,3.2,213.35,213.22,4.6582]
[1733880907337,2.3423,213.33,213.22,4.6582]
[1733880908338,3.2,213.35,213.22,4.6582]
[1733880908533,3.2,213.35,213.22,1.4582]
[1733880908735,30.22407831,213.33,213.17,5.70547105]
[1733880908942,2.3433,213.24,213.17,5.70547105]
[1733880909440,3.2,213.26,213.17,5.70547105]
[1733880910237,3.2,213.31,213.17,5.70547105]
[1733880910434,31.58687831,213.41,213.22,30.22407831]
[1733880910635,3.2,213.39,213.23,4.6877]
[1733880910836,3.2,213.39,213.31,2.3424]
[1733880911037,3.2,213.39,213.24,2.897]
[1733880911340,80.38507831,213.45,213.26,30.22407831]
[1733880911634,3.2,213.43,213.26,30.22407831]
[1733880911842,1.478,213.5,213.3,30.22407831]
[1733880912035,3.93259896,213.49,213.31,3.2]
[1733880912235,3.2,213.49,213.34,30.22407831]
[1733880912437,8.75370817,213.49,213.35,1.4287]
[1733880912633,3.2,213.53,213.38,30.22407831]
[1733880912837,3.2,213.53,213.39,3.2]
[1733880913543,3.2,213.53,213.38,30.22407831]
[1733880913739,0.73237396,213.52,213.39,3.2]
[1733880913939,1.46476973,213.52,213.39,3.2]
[1733880914144,0.73237396,213.52,213.39,3.2]
[1733880914345,2.3406,213.48,213.4,2.3414]
[1733880914839,2.3404,213.5,213.43,2.3411]
[1733880915147,0.73237396,213.52,213.42,30.22407831]
[1733880915744,0.73237396,213.52,213.44,2.341]
[1733880915745,2.3404,213.5,213.44,2.341]
[1733880915944,0.73237396,213.52,213.38,30.22407831]
[1733880916148,2.3408,213.46,213.4,2.3414]
[1733880916439,3.2,213.45,213.36,2.9662]
[1733880916743,30.22407831,213.47,213.36,1.4665]
[1733880916943,1.4051,213.51,213.35,1.4287]
[1733880916944,3.2,213.48,213.35,1.4287]
[1733880917148,3.2,213.48,213.36,1.4062]
[1733880918648,3.2,213.48,213.36,3.748]
[1733880918951,3.2,213.48,213.36,1.4062]
[1733880919639,18.54912448,213.54,213.36,1.4062]
[1733880919843,3.93236881,213.53,213.36,1.4062]
[1733880920047,3.2,213.53,213.36,1.4062]
[1733880920251,5.5402,213.52,213.45,2.3409]
[1733880920449,5.5402,213.52,213.39,18.54912448]
[1733880920450,3.2,213.52,213.39,18.54912448]
[1733880920652,0.73240078,213.51,213.36,1.4062]
[1733880920850,2.3408,213.46,213.36,3.748]
[1733880921047,2.3408,213.46,213.31,1.4027]
[1733880921048,3.2,213.45,213.31,1.4027]
[1733880921249,18.54912448,213.42,213.26,1.4622]
[1733880921450,18.54912448,213.38,213.26,1.4622]
[1733880921650,18.54912448,213.38,213.19,2.833]
[1733880921651,3.2,213.37,213.2,3.2]
[1733880921947,3.93261904,213.37,213.21,18.54912448]
[1733880922145,3.2,213.37,213.23,5.61204854]
[1733880922346,0.73294315,213.36,213.23,5.61204854]
[1733880922742,0.73294315,213.36,213.2,4.6148]
[1733880923241,2.3425,213.31,213.24,2.3432]
[1733880923442,3.2,213.32,213.21,5.62722992]
[1733880923642,0.7329982,213.35,213.21,5.62722992]
[1733880923841,30.17779388,213.4,213.23,30.17779388]
[1733880923842,3.2,213.4,213.23,30.17779388]
[1733880924047,0.73287821,213.39,213.28,30.17779388]
[1733880924248,33.37779388,213.48,213.32,30.17779388]
[1733880924451,2.3411,213.44,213.37,2.3417]
[1733880924847,3.2,213.48,213.33,4.2897]
[1733880925351,0.73249763,213.47,213.33,4.2897]
[1733880925850,3.2,213.48,213.33,4.2897]
[1733880926050,0.73253428,213.47,213.33,4.2897]
[1733880926447,3.2,213.48,213.33,4.2897]
[1733880926846,3.2,213.48,213.34,5.5456581]
[1733880927044,3.2,213.48,213.39,2.3416]
[1733880927249,3.2,213.48,213.34,5.5456581]
[1733880927554,3.2,213.48,213.35,2.3419]
[1733880927747,3.2,213.48,213.33,2.8728]
[1733880927748,30.17779388,213.47,213.33,2.8728]
[1733880927947,0.73251707,213.46,213.3,2.3425]
[1733880928246,0.73251707,213.46,213.3,1.4611]
[1733880928654,0.73251707,213.46,213.31,2.3424]
[1733880928952,0.73251707,213.46,213.31,8.00029354]
[1733880929153,2.3418,213.37,213.31,5.65789354]
[1733880930056,3.2,213.4,213.22,3.2]
[1733880930057,30.17779388,213.39,213.22,3.2]
[1733880930251,0.73285145,213.38,213.22,3.2]
[1733880930655,30.17779388,213.35,213.21,5.62809147]
[1733880930954,3.93285145,213.34,213.2,1.4611]
[1733880931149,30.17779388,213.31,213.13,30.17779388]
[1733880931350,30.17779388,213.31,213.14,1.4333]
[1733880931557,2.3435,213.21,213.19,1.404]
[1733880931749,3.2,213.25,213.16,5.61689524]
[1733880931951,3.2,213.26,213.16,5.61689524]
[1733880932353,2.3434,213.22,213.16,5.61689524]
[1733880932549,3.2,213.26,213.16,5.61689524]
[1733880933352,3.2,213.3,213.16,5.61689524]
[1733880933550,0.73248732,213.29,213.16,5.61689524]
[1733880933750,3.2,213.3,213.16,5.61689524]
[1733880934149,0.73237022,213.29,213.16,5.61689524]
[1733880935159,3.2,213.3,213.16,5.61689524]
[1733880935356,2.343,213.26,213.18,2.3438]
[1733880935556,3.2,213.3,213.16,5.61689524]
[1733880935752,0.73235848,213.29,213.16,5.61689524]
[1733880936056,3.2,213.3,213.16,5.61689524]
[1733880936256,3.2,213.3,213.15,1.4372]
[1733880936452,2.3437,213.2,213.15,1.4372]
[1733880936855,3.2,213.23,213.15,1.4372]
[1733880937156,3.2,213.23,213.17,2.344]
[1733880937361,30.17779388,213.35,213.16,30.17779388]
[1733880937557,3.93244027,213.34,213.16,30.17779388]
[1733880937757,2.3424,213.31,213.25,2.3431]
[1733880937969,3.2,213.34,213.2,30.17779388]
[1733880938154,3.2,213.34,213.21,1.4474]
[1733880938354,5.53597003,213.38,213.28,2.3427]
[1733880938558,8.73597003,213.38,213.24,30.17779388]
[1733880938955,2.3422,213.33,213.27,2.3429]
[1733880939261,8.73597003,213.38,213.24,30.17779388]
[1733880939761,2.342,213.35,213.28,2.3427]
[1733880940254,2.3419,213.37,213.29,2.3426]
[1733880940455,1.4556,213.48,213.25,1.3782]
[1733880940456,3.2,213.4,213.25,1.3782]
[1733880940654,3.2,213.41,213.28,30.17779388]
[1733880940852,3.2,213.42,213.29,1.3702]
[1733880941661,2.3416,213.39,213.33,2.3421]
[1733880941861,3.2,213.42,213.29,1.3702]
[1733880942261,2.3421,213.34,213.29,1.3702]
[1733880942754,3.2,213.35,213.25,1.3782]
[1733880943563,2.3423,213.33,213.27,2.3429]
[1733880943758,3.2,213.35,213.25,1.3782]
[1733880944558,3.2,213.35,213.19,4.6086]
[1733880944754,30.17779388,213.31,213.19,1.4086]
[1733880944961,2.3434,213.22,213.19,1.4086]
[1733880945163,2.3434,213.22,213.14,33.02259388]
[1733880945164,3.2,213.23,213.14,2.8448]
[1733880945468,3.2,213.23,213.06,33.37779388]
[1733880945469,2.3439,213.18,213.1,2.3447]
[1733880945759,2.3439,213.18,213.07,2.8099]
[1733880946262,3.2,213.24,213.11,35.94212416]
[1733880946663,3.2,213.24,213.12,3.2]
[1733880947261,1.4676,213.3,213.12,3.2]
[1733880947461,3.2,213.27,213.12,3.2]
[1733880948366,33.37779388,213.27,213.11,5.76433028]
[1733880948563,0.73198821,213.26,213.11,5.76433028]
[1733880948766,30.17779388,213.23,213.08,5.57987056]
[1733880949165,30.17779388,213.23,213.07,2.8099]
[1733880949371,2.3439,213.18,213.07,2.8099]
[1733880949567,3.2,213.17,213.07,2.8099]
[1733880949765,2.8588,213.22,213.07,2.8099]
[1733880949766,3.2,213.16,213.07,2.8099]
[1733880950064,3.2,213.15,213.07,2.8099]
[1733880950765,3.2,213.2,213.07,36.18769388]
[1733880950967,3.2,213.21,213.07,36.18769388]
[1733880951265,2.8588,213.28,213.07,36.18769388]
[1733880951266,3.2,213.22,213.07,36.18769388]
[1733880951470,3.2,213.21,213.07,36.18769388]
[1733880951661,3.2,213.2,213.07,36.18769388]
[1733880951868,3.2,213.2,213.07,32.98769388]
[1733880952069,3.2,213.2,213.07,36.16769388]
[1733880952371,3.2,213.2,213.07,2.8099]
[1733880952976,3.18,213.21,213.07,32.98769388]
[1733880953369,3.18,213.21,213.08,3.18]
[1733880954259,2.344,213.18,213.11,2.3445]
[1733880954462,3.18,213.21,213.07,32.98769388]
[1733880955262,3.18,213.21,213.09,2.3448]
[1733880955663,3.18,213.21,213.07,32.98769388]
[1733880956876,2.3439,213.18,213.07,32.98769388]
[1733880957172,3.18,213.21,213.07,32.98769388]
[1733880957373,2.3439,213.18,213.07,32.98769388]
[1733880957671,3.18,213.21,213.07,32.98769388]
[1733880957870,3.18,213.24,213.11,30.17779388]
[1733880958072,30.17779388,213.33,213.15,30.17779388]
[1733880958274,3.91189205,213.32,213.15,30.17779388]
[1733880958469,0.73189205,213.31,213.11,33.35779388]
[1733880958773,30.17779388,213.29,213.11,33.35779388]
[1733880958973,0.73181536,213.28,213.16,2.344]
[1733880959369,0.73181536,213.28,213.11,33.35779388]
[1733880960076,2.3432,213.24,213.16,2.3441]
[1733880960276,3.18,213.28,213.11,33.35779388]
[1733880960571,2.3432,213.24,213.16,2.3441]
[1733880960869,2.3432,213.24,213.11,33.35779388]
[1733880960870,3.18,213.28,213.11,30.17779388]
[1733880961172,0.73130272,213.27,213.11,30.17779388]
[1733880961373,3.18,213.28,213.11,30.17779388]
[1733880961580,30.17779388,213.33,213.15,30.17779388]
[1733880961771,0.73123111,213.32,213.16,3.18]
[1733880962076,8.86852509,213.34,213.19,30.17779388]
[1733880962276,0.73112442,213.33,213.2,2.8321]
[1733880962480,0.73117875,213.32,213.2,2.8321]
[1733880962978,30.17779388,213.33,213.2,2.8321]
[1733880963167,8.86852509,213.34,213.17,1.5014]
[1733880963168,18.5830411,213.31,213.17,1.5014]
[1733880963371,18.5830411,213.27,213.11,3.18]
[1733880963574,3.91129366,213.26,213.11,3.18]
[1733880963771,0.73129366,213.25,213.11,3.18]
[1733880964177,0.73129366,213.25,213.11,5.5246]
[1733880964178,2.3436,213.21,213.11,5.5246]
[1733880964373,3.18,213.26,213.11,3.18]
[1733880964572,0.7308447,213.25,213.11,3.18]
[1733880965575,3.18,213.27,213.13,30.20609963]
[1733880966172,2.3431,213.25,213.19,2.3437]
[1733880966379,3.18,213.32,213.18,3.18]
[1733880966578,5.68852509,213.34,213.19,4.4066]
[1733880966780,2.3422,213.33,213.27,2.3428]
[1733880966980,3.18,213.35,213.21,30.20609963]
[1733880967276,0.73147384,213.34,213.21,30.20609963]
[1733880967479,0.73147384,213.34,213.19,4.4066]
[1733880967675,3.18,213.35,213.19,4.4066]
[1733880967873,2.3425,213.31,213.19,4.4066]
[1733880968276,3.18,213.36,213.21,30.20609963]
[1733880968979,3.18,213.36,213.19,4.4066]
[1733880969176,3.18,213.36,213.22,5.74849539]
[1733880969782,5.7113575,213.39,213.22,5.74849539]
[1733880969980,15.84281808,213.38,213.22,5.74849539]
[1733880970186,11.93812734,213.37,213.24,30.20609963]
[1733880970377,2.3415,213.4,213.34,2.3421]
[1733880970578,3.18,213.44,213.28,30.20609963]
[1733880970775,17.65802518,213.43,213.29,1.4225]
[1733880971084,3.18,213.44,213.29,1.4225]
[1733880971282,3.18,213.44,213.3,1.4744]
[1733880971480,3.18,213.44,213.31,3.18]
[1733880971782,3.18,213.44,213.31,4.6317]
[1733880971985,2.3415,213.4,213.31,4.6317]
[1733880972479,3.18,213.44,213.31,4.6317]
[1733880972781,30.20609963,213.52,213.32,30.20609963]
[1733880972987,29.61728849,213.51,213.36,30.20609963]
[1733880973183,2.3407,213.48,213.37,3.18]
[1733880973585,2.3405,213.49,213.43,2.3411]
[1733880973783,3.18,213.53,213.37,3.18]
[1733880974087,29.60689297,213.52,213.37,3.18]
[1733880974280,9.41329445,213.51,213.37,3.18]
[1733880974480,8.24953074,213.52,213.41,2.3413]
[1733880974685,3.18,213.53,213.37,3.18]
[1733880974686,20.90783117,213.51,213.37,3.18]
[1733880974884,2.3398,213.55,213.48,2.3405]
[1733880975084,3.18,213.57,213.48,2.3405]
[1733880975280,12.63549604,213.56,213.48,2.3405]
[1733880975479,11.90502805,213.55,213.49,2.3404]
[1733880975686,2.865,213.64,213.5,3.18]
[1733880975987,2.3395,213.58,213.52,2.34]
[1733880976182,5.69891376,213.65,213.51,1.4101]
[1733880976377,12.60695774,213.64,213.51,1.4101]
[1733880976590,0.72979296,213.63,213.51,1.4101]
[1733880976791,2.3389,213.64,213.52,30.20609963]
[1733880976985,3.18,213.67,213.52,30.20609963]
[1733880977282,0.72959164,213.66,213.52,30.20609963]
[1733880977488,3.18,213.67,213.57,2.3395]
[1733880977690,30.20609963,213.74,213.56,33.38609963]
[1733880977886,3.90978522,213.7,213.57,2.9074]
[1733880978081,3.18,213.7,213.57,2.9074]
[1733880978287,2.8623,213.76,213.57,2.9074]
[1733880978489,2.338,213.72,213.64,2.3387]
[1733880978685,3.91006377,213.75,213.64,30.20609963]
[1733880978686,3.18,213.75,213.64,30.20609963]
[1733880979384,1.3679,213.83,213.68,30.20609963]
[1733880979385,3.18,213.82,213.68,30.20609963]
[1733880979594,0.72971099,213.81,213.69,3.18]